[Event "SVK-ch Open 2018"]
[Site "Banska Stiavnica"]
[Date "2018.07.07"]
[Round "1"]
[White "Pacher, Milan"]
[Black "Budinsky, Jozef"]
[Result "1-0"]
[ECO "C23"]
[WhiteElo "2467"]
[BlackElo "1931"]
[Annotator "ChessBase"]
[PlyCount "107"]
[EventDate "2018.07.07"]
[EventType "swiss"]
[EventCountry "SVK"]
[SourceTitle "playchess.com"]
[Source "ChessBase"]
[SourceQuality "1"]
[TimeControl "40/5400+30:1800+30"]

1. e4 {[%emt 0:00:00]} e5 {[%emt 0:00:00]} 2. Nf3 {[%emt 0:00:00]} Nc6 {[%emt 0:00:09]} 3. Bc4 {[%emt 0:00:00]} Bc5 {[%emt 0:01:14]} 4. c3 {[%emt 0:00:00]} d6 {[%emt 0:04:13]} 5. d4 {[%emt 0:00:57]} exd4 {[%emt 0:01:46]} 6. cxd4 {[%emt 0:00:03]} Bb6 {[%emt 0:01:42]} 7. Nc3 {[%emt 0:00:08]} Nf6 {[%emt 0:02:35]} 8. O-O {[%emt 0:05:53]} Bg4 {[%emt 0:05:16]} 9. d5 {[%emt 0:02:14]} Ne5 {[%emt 0:00:45]} 10. Bb5+ {[%emt 0:02:09]} c6 {[%emt 0:03:33]} 11. dxc6 {[%emt 0:02:08]} bxc6 {[%emt 0:01:03]} 12. Be2 {[%emt 0:02:08]} Nxf3+ {[%emt 0:05:30]} 13. Bxf3 {[%emt 0:00:04]} Bxf3 {[%emt 0:00:32]} 14. Qxf3 {[%emt 0:00:03]} O-O {[%emt 0:02:01]} 15. Bg5 {[%emt 0:03:53]} Bd4 {[%emt 0:02:27]} 16. Rad1 {[%emt 0:01:35]} Be5 {[%emt 0:05:02]} 17. Rd3 {[%emt 0:08:42]} Qc7 {[%emt 0:05:06]} 18. Rc1 {[%emt 0:03:12]} Qb7 {[%emt 0:06:40]} 19. Qe2 {[%emt 0:06:14]} Qa6 {[%emt 0:04:27]} 20. Bxf6 {[%emt 0:06:09]} Bxf6 {[%emt 0:08:38]} 21. Rxd6 {[%emt 0:00:07]} Qxe2 {[%emt 0:04:20]} 22. Nxe2 {[%emt 0:00:01]} Bxb2 {[%emt 0:00:17]} 23. Rcxc6 {[%emt 0:00:07]} Rfe8 {[%emt 0:02:59]} 24. f3 {[%emt 0:02:07]} Rac8 {[%emt 0:15:40]} 25. Kf2 {[%emt 0:01:36]} Ba3 {[%emt 0:00:31]} 26. Rxc8 {[%emt 0:00:32]} Rxc8 {[%emt 0:00:02]} 27. Ra6 {[%emt 0:01:35]} Bc5+ {[%emt 0:02:01]} 28. Kg3 {[%emt 0:00:07]} Bb6 {[%emt 0:00:36]} 29. Nf4 {[%emt 0:01:38]} Rc6 {[%emt 0:00:54]} 30. Kg4 {[%emt 0:00:27]} g6 {[%emt 0:05:00]} 31. Nd5 {[%emt 0:02:59]} Rc2 {[%emt 0:00:52]} 32. Kh3 {[%emt 0:01:52]} Kg7 {[%emt 0:03:18]} 33. Nxb6 {[%emt 0:04:58]} axb6 {[%emt 0:00:10]} 34. g4 {[%emt 0:00:06]} g5 {[%emt 0:01:36]} 35. Kg3 {[%emt 0:00:27]} Rb2 {[%emt 0:00:44]} 36. h4 {[%emt 0:00:06]} h6 {[%emt 0:00:59]} 37. h5 {[%emt 0:02:16]} Kh7 {[%emt 0:02:56]} 38. Ra7 {[%emt 0:03:52]} Kg8 {[%emt 0:00:27]} 39. f4 {[%emt 0:00:37]} gxf4+ {[%emt 0:02:50]} 40. Kxf4 {[%emt 0:00:03]} Kg7 {[%emt 0:00:19]} 41. e5 {[%emt 0:34:05]} Re2 {[%emt 0:02:52]} 42. a4 {[%emt 0:00:00]} Kg8 {[%emt 0:01:38]} 43. Ra6 {[%emt 0:00:00]} Rb2 {[%emt 0:02:35]} 44. a5 {[%emt 0:00:00]} Rb4+ {[%emt 0:05:50]} 45. Kf5 bxa5 {[%emt 0:00:39]} 46. Rxh6 {[%emt 0:00:00]} Kg7 {[%emt 0:00:23]} 47. Ra6 {[%emt 0:00:00]} a4 {[%emt 0:00:18]} 48. g5 {[%emt 0:00:00]} Rh4 {[%emt 0:04:36]} 49. h6+ {[%emt 0:00:00]} Kg8 {[%emt 0:01:02]} 50. Ra8+ {[%emt 0:00:00]} Kh7 {[%emt 0:03:26]} 51. Rf8 {[%emt 0:00:00]} a3 {[%emt 0:00:28]} 52. Rxf7+ {[%emt 0:00:00]} Kg8 {[%emt 0:01:43]} 53. Ra7 {[%emt 0:00:00]} Rh3 {[%emt 0:00:22]} 54. Kg6 {[%emt 0:00:00]} 1-0

[Event "SVK-ch Open 2018"]
[Site "Banska Stiavnica"]
[Date "2018.07.07"]
[Round "1"]
[White "Druska, Juraj"]
[Black "Ihnat, Marek"]
[Result "1-0"]
[ECO "A48"]
[WhiteElo "2439"]
[BlackElo "1432"]
[Annotator "NA"]
[PlyCount "43"]
[EventDate "2018.07.07"]
[EventType "swiss"]
[EventCountry "SVK"]
[SourceTitle "playchess.com"]
[Source "ChessBase"]
[SourceQuality "1"]
[TimeControl "40/5400+30:1800+30"]

1. d4 {[%emt 0:00:00]} Nf6 {[%emt 0:00:00]} 2. Nf3 {[%emt 0:00:00]} g6 {[%emt 0:00:00]} 3. Nbd2 {[%emt 0:00:17]} d5 {[%emt 0:02:40]} 4. b4 {[%emt 0:00:31]} Bg7 {[%emt 0:01:08]} 5. e3 {[%emt 0:00:26]} O-O {[%emt 0:00:43]} 6. Bb2 {[%emt 0:01:03]} Nbd7 {[%emt 0:08:17]} 7. c4 {[%emt 0:03:12]} dxc4 {[%emt 0:04:18]} 8. Bxc4 {[%emt 0:02:12]} Nb6 {[%emt 0:01:16]} 9. Bd3 {[%emt 0:05:19]} Nbd5 {[%emt 0:05:26]} 10. a3 {[%emt 0:04:18]} c6 {[%emt 0:04:45]} 11. O-O {[%emt 0:02:25]} Re8 {[%emt 0:05:29]} 12. Qb3 {[%emt 0:04:11]} Bg4 {[%emt 0:16:45]} 13. h3 {[%emt 0:10:34]} Bxf3 {[%emt 0:01:43]} 14. Nxf3 {[%emt 0:00:08]} Nd7 {[%emt 0:00:52]} 15. Rfd1 {[%emt 0:02:37]} a6 {[%emt 0:05:32]} 16. Rab1 {[%emt 0:11:27]} Qc7 {[%emt 0:02:19]} 17. e4 {[%emt 0:18:03]} N5f6 {[%emt 0:05:25]} 18. Rbc1 {[%emt 0:07:37]} Qb6 {[%emt 0:05:38]} 19. d5 {[%emt 0:08:36]} cxd5 {[%emt 0:05:06]} 20. e5 {[%emt 0:01:30]} Nh5 {[%emt 0:02:25]} 21. Qxd5 {[%emt 0:02:12]} Nb8 {[%emt 0:05:38]} 22. Bd4 {[%emt 0:01:14]} 1-0

[Event "SVK-ch Open 2018"]
[Site "Banska Stiavnica"]
[Date "2018.07.07"]
[Round "1"]
[White "Szeberenyi, Adam"]
[Black "Hyll, Jan"]
[Result "1-0"]
[ECO "E61"]
[WhiteElo "2372"]
[BlackElo "1915"]
[Annotator "NA"]
[PlyCount "67"]
[EventDate "2018.07.07"]
[EventType "swiss"]
[EventCountry "SVK"]
[SourceTitle "playchess.com"]
[Source "ChessBase"]
[SourceQuality "1"]
[TimeControl "40/5400+30:1800+30"]

1. d4 {[%emt 0:00:00]} Nf6 {[%emt 0:00:00]} 2. Nf3 {[%emt 0:00:27]} g6 {[%emt 0:00:00]} 3. c4 {[%emt 0:00:04]} Bg7 {[%emt 0:00:00]} 4. Nc3 {[%emt 0:00:05]} d6 {[%emt 0:00:07]} 5. Bg5 {[%emt 0:00:06]} O-O {[%emt 0:00:08]} 6. e3 {[%emt 0:00:03]} c5 {[%emt 0:01:16]} 7. Be2 {[%emt 0:01:45]} Nc6 {[%emt 0:02:45]} 8. O-O {[%emt 0:03:24]} h6 9. Bh4 Bf5 {[%emt 0:02:38]} 10. d5 {[%emt 0:03:12]} Nb8 {[%emt 0:00:43]} 11. Nd2 {[%emt 0:02:02]} g5 {[%emt 0:01:51]} 12. Bg3 {[%emt 0:03:52]} e5 {[%emt 0:03:10]} 13. dxe6 {[%emt 0:02:48]} fxe6 {[%emt 0:00:22]} 14. Nb3 {[%emt 0:09:48]} Ne4 {[%emt 0:10:11]} 15. Nxe4 {[%emt 0:03:20]} Bxe4 {[%emt 0:04:37]} 16. Qxd6 {[%emt 0:04:32]} Qxd6 {[%emt 0:03:27]} 17. Bxd6 {[%emt 0:00:05]} Rd8 {[%emt 0:00:14]} 18. Nxc5 {[%emt 0:01:49]} Bc6 {[%emt 0:00:28]} 19. Rad1 {[%emt 0:01:01]} Bxb2 {[%emt 0:00:10]} 20. Nxe6 {[%emt 0:03:30]} Nd7 {[%emt 0:01:27]} 21. Nxd8 {[%emt 0:01:07]} Rxd8 {[%emt 0:00:02]} 22. f4 {[%emt 0:07:02]} Re8 {[%emt 0:01:08]} 23. fxg5 {[%emt 0:00:34]} Rxe3 {[%emt 0:00:46]} 24. Bf3 {[%emt 0:03:53]} hxg5 {[%emt 0:01:17]} 25. Bxc6 {[%emt 0:01:34]} bxc6 {[%emt 0:00:02]} 26. Rf5 {[%emt 0:00:12]} Nf6 {[%emt 0:03:06]} 27. Rxg5+ {[%emt 0:02:41]} Kh7 {[%emt 0:00:02]} 28. Bc5 {[%emt 0:08:55]} Re2 {[%emt 0:01:19]} 29. Bd4 {[%emt 0:07:50]} Bxd4+ {[%emt 0:04:04]} 30. Rxd4 {[%emt 0:00:05]} Ne4 {[%emt 0:02:04]} 31. Kf1 {[%emt 0:00:21]} Re3 {[%emt 0:00:14]} 32. Rg4 {[%emt 0:02:31]} Nf6 {[%emt 0:01:02]} 33. Rg3 {[%emt 0:00:33]} Re6 {[%emt 0:00:41]} 34. Rh4+ {[%emt 0:00:07]} 1-0

[Event "SVK-ch Open 2018"]
[Site "Banska Stiavnica"]
[Date "2018.07.07"]
[Round "1"]
[White "Gelle, Istvan"]
[Black "Brnusak, Tomas"]
[Result "1-0"]
[ECO "A45"]
[WhiteElo "2344"]
[BlackElo "1910"]
[Annotator "NA"]
[PlyCount "103"]
[EventDate "2018.07.07"]
[EventType "swiss"]
[EventCountry "SVK"]
[SourceTitle "playchess.com"]
[Source "ChessBase"]
[SourceQuality "1"]
[TimeControl "40/5400+30:1800+30"]

1. d4 {[%emt 0:00:00]} Nf6 {[%emt 0:00:00]} 2. Bf4 {[%emt 0:00:00]} g6 {[%emt 0:00:04]} 3. e3 {[%emt 0:00:00]} Bg7 {[%emt 0:00:27]} 4. Nf3 {[%emt 0:00:00]} d6 {[%emt 0:02:42]} 5. h3 {[%emt 0:00:08]} O-O {[%emt 0:02:50]} 6. Be2 {[%emt 0:00:07]} c5 {[%emt 0:02:16]} 7. c3 {[%emt 0:00:08]} Qb6 {[%emt 0:01:47]} 8. Qb3 {[%emt 0:00:12]} Be6 {[%emt 0:01:27]} 9. Qxb6 {[%emt 0:00:09]} axb6 {[%emt 0:00:09]} 10. a3 {[%emt 0:00:04]} Bd5 {[%emt 0:01:50]} 11. Nbd2 {[%emt 0:03:46]} Bc6 {[%emt 0:01:43]} 12. O-O {[%emt 0:01:09]} Nbd7 {[%emt 0:01:33]} 13. Bh2 {[%emt 0:01:03]} Rfe8 {[%emt 0:01:31]} 14. Rfe1 {[%emt 0:03:56]} b5 {[%emt 0:01:51]} 15. dxc5 {[%emt 0:12:41]} dxc5 {[%emt 0:04:31]} 16. Ne5 {[%emt 0:02:40]} Nxe5 {[%emt 0:02:42]} 17. Bxe5 {[%emt 0:01:09]} Nd5 {[%emt 0:02:20]} 18. Bxg7 {[%emt 0:04:16]} Kxg7 {[%emt 0:01:05]} 19. Rad1 {[%emt 0:11:24]} Rad8 {[%emt 0:01:54]} 20. Nb3 {[%emt 0:17:50]} b6 {[%emt 0:06:13]} 21. Rd2 {[%emt 0:06:32]} Nc7 {[%emt 0:05:02]} 22. Red1 {[%emt 0:03:55]} Rxd2 {[%emt 0:00:42]} 23. Rxd2 {[%emt 0:01:36]} e5 {[%emt 0:01:26]} 24. g3 {[%emt 0:06:29]} f5 {[%emt 0:02:36]} 25. h4 {[%emt 0:00:50]} Kf6 {[%emt 0:01:28]} 26. f4 {[%emt 0:10:27]} e4 {[%emt 0:01:34]} 27. g4 {[%emt 0:06:01]} Ke7 {[%emt 0:04:13]} 28. Kf2 {[%emt 0:03:05]} Rd8 {[%emt 0:02:17]} 29. Rxd8 {[%emt 0:01:20]} Kxd8 {[%emt 0:00:11]} 30. h5 {[%emt 0:00:49]} Ke7 {[%emt 0:01:00]} 31. g5 {[%emt 0:00:52]} Bd5 {[%emt 0:00:30]} 32. Nd2 {[%emt 0:00:14]} Bf7 {[%emt 0:03:29]} 33. h6 {[%emt 0:00:27]} Kd6 {[%emt 0:00:44]} 34. Ke1 {[%emt 0:01:16]} Kc6 {[%emt 0:01:28]} 35. Bd1 {[%emt 0:00:36]} Ne8 {[%emt 0:01:21]} 36. b3 {[%emt 0:00:42]} Nc7 {[%emt 0:00:22]} 37. Nf1 {[%emt 0:00:25]} Nd5 {[%emt 0:01:24]} 38. Kd2 {[%emt 0:00:17]} c4 {[%emt 0:01:05]} 39. Ng3 {[%emt 0:01:12]} Nc7 {[%emt 0:01:02]} 40. Ne2 {[%emt 0:01:18]} Kd5 {[%emt 0:01:20]} 41. Nd4 {[%emt 0:30:38]} Be8 {[%emt 0:33:20]} 42. Be2 {[%emt 0:00:32]} Ne6 {[%emt 0:02:18]} 43. bxc4+ {[%emt 0:00:27]} bxc4 {[%emt 0:01:37]} 44. Nxe6 {[%emt 0:00:33]} Kxe6 {[%emt 0:00:10]} 45. Bxc4+ {[%emt 0:00:07]} Kd6 {[%emt 0:00:11]} 46. Bg8 {[%emt 0:00:30]} Kc5 {[%emt 0:01:58]} 47. c4 {[%emt 0:00:12]} b5 {[%emt 0:02:50]} 48. Kc3 {[%emt 0:00:04]} bxc4 {[%emt 0:01:13]} 49. Bxc4 {[%emt 0:00:06]} Bc6 {[%emt 0:01:42]} 50. Bg8 {[%emt 0:00:06]} Bd5 {[%emt 0:00:12]} 51. Bxh7 {[%emt 0:00:33]} Bf7 {[%emt 0:00:17]} 52. a4 {[%emt 0:00:06]} 1-0

[Event "SVK-ch Open 2018"]
[Site "Banska Stiavnica"]
[Date "2018.07.07"]
[Round "1"]
[White "Polyik, Peter"]
[Black "Ucekajova, Veronika"]
[Result "1-0"]
[ECO "E73"]
[WhiteElo "2311"]
[BlackElo "1757"]
[Annotator "NA"]
[PlyCount "91"]
[EventDate "2018.07.07"]
[EventType "swiss"]
[EventCountry "SVK"]
[SourceTitle "playchess.com"]
[Source "ChessBase"]
[SourceQuality "1"]
[TimeControl "40/5400+30:1800+30"]

1. d4 {[%emt 0:00:00]} Nf6 {[%emt 0:00:00]} 2. c4 {[%emt 0:00:00]} g6 {[%emt 0:00:00]} 3. Nc3 {[%emt 0:00:00]} Bg7 {[%emt 0:00:22]} 4. e4 {[%emt 0:00:10]} d6 {[%emt 0:00:30]} 5. Be2 {[%emt 0:00:06]} O-O {[%emt 0:00:36]} 6. Bg5 {[%emt 0:00:35]} c5 {[%emt 0:00:55]} 7. d5 {[%emt 0:00:51]} h6 {[%emt 0:01:54]} 8. Be3 {[%emt 0:03:10]} a6 {[%emt 0:02:47]} 9. a4 {[%emt 0:04:57]} Re8 {[%emt 0:08:08]} 10. h3 {[%emt 0:03:39]} Nbd7 {[%emt 0:09:27]} 11. Nf3 {[%emt 0:01:30]} b6 {[%emt 0:05:43]} 12. O-O {[%emt 0:03:28]} Bb7 {[%emt 0:01:18]} 13. Qd2 {[%emt 0:02:04]} Kh7 {[%emt 0:00:55]} 14. Bf4 {[%emt 0:06:31]} e5 {[%emt 0:12:09]} 15. Be3 {[%emt 0:01:36]} Nf8 {[%emt 0:03:05]} 16. Nh2 {[%emt 0:01:58]} g5 {[%emt 0:00:50]} 17. Ng4 {[%emt 0:04:04]} Ng6 {[%emt 0:04:31]} 18. g3 {[%emt 0:00:43]} Bc8 {[%emt 0:02:29]} 19. Kg2 {[%emt 0:04:01]} Nxg4 {[%emt 0:05:44]} 20. Bxg4 {[%emt 0:00:07]} Bxg4 {[%emt 0:00:40]} 21. hxg4 {[%emt 0:00:06]} Kg8 {[%emt 0:01:59]} 22. a5 {[%emt 0:23:01]} bxa5 {[%emt 0:06:29]} 23. Rfb1 {[%emt 0:03:11]} Qb6 {[%emt 0:02:52]} 24. b3 {[%emt 0:12:36]} Bf6 {[%emt 0:06:51]} 25. Qa2 {[%emt 0:02:27]} Bd8 {[%emt 0:00:42]} 26. Bd2 {[%emt 0:00:05]} Qb7 {[%emt 0:03:45]} 27. Nd1 {[%emt 0:01:06]} Ne7 {[%emt 0:03:16]} 28. Ne3 {[%emt 0:00:52]} Bb6 {[%emt 0:01:12]} 29. Bxa5 {[%emt 0:07:15]} Bxa5 {[%emt 0:00:26]} 30. Qxa5 {[%emt 0:00:06]} Reb8 {[%emt 0:00:13]} 31. Nc2 {[%emt 0:00:42]} Qc8 {[%emt 0:04:46]} 32. f3 {[%emt 0:01:19]} Kg7 {[%emt 0:01:13]} 33. b4 {[%emt 0:06:39]} cxb4 {[%emt 0:00:59]} 34. Rxb4 {[%emt 0:00:04]} Rxb4 {[%emt 0:02:26]} 35. Qxb4 {[%emt 0:00:02]} Qb8 {[%emt 0:00:48]} 36. Rxa6 {[%emt 0:01:18]} Qxb4 {[%emt 0:02:00]} 37. Nxb4 {[%emt 0:00:01]} Rxa6 {[%emt 0:01:18]} 38. Nxa6 {[%emt 0:00:02]} Kg6 {[%emt 0:00:58]} 39. Kf2 {[%emt 0:01:19]} h5 {[%emt 0:00:39]} 40. gxh5+ {[%emt 0:01:27]} Kxh5 {[%emt 0:00:02]} 41. Nb8 {[%emt 0:07:34]} Kg6 {[%emt 0:03:37]} 42. c5 {[%emt 0:00:19]} Nc8 {[%emt 0:00:44]} 43. Nd7 {[%emt 0:01:01]} f6 {[%emt 0:01:34]} 44. Nb6 {[%emt 0:00:05]} dxc5 {[%emt 0:03:40]} 45. Nxc8 {[%emt 0:00:09]} f5 {[%emt 0:00:07]} 46. d6 {[%emt 0:00:08]} 1-0

[Event "SVK-ch Open 2018"]
[Site "Banska Stiavnica"]
[Date "2018.07.07"]
[Round "1"]
[White "Petran, Peter"]
[Black "Marsina, Stefan"]
[Result "1-0"]
[ECO "A05"]
[WhiteElo "2302"]
[BlackElo "1908"]
[Annotator "NA"]
[PlyCount "75"]
[EventDate "2018.07.07"]
[EventType "swiss"]
[EventCountry "SVK"]
[SourceTitle "playchess.com"]
[Source "ChessBase"]
[SourceQuality "1"]
[TimeControl "40/5400+30:1800+30"]

1. Nf3 {[%emt 0:00:00]} Nf6 {[%emt 0:00:20]} 2. g3 {[%emt 0:00:01]} d5 {[%emt 0:01:52]} 3. Bg2 {[%emt 0:00:07]} c5 {[%emt 0:00:23]} 4. c4 {[%emt 0:00:31]} e6 {[%emt 0:00:49]} 5. cxd5 {[%emt 0:00:10]} exd5 {[%emt 0:00:17]} 6. d4 {[%emt 0:00:09]} Nc6 {[%emt 0:00:49]} 7. O-O {[%emt 0:00:07]} cxd4 {[%emt 0:06:38]} 8. Nxd4 {[%emt 0:00:27]} Bc5 {[%emt 0:00:54]} 9. Nb3 {[%emt 0:00:06]} Be7 {[%emt 0:01:22]} 10. Nc3 {[%emt 0:00:24]} Be6 {[%emt 0:07:57]} 11. Nd4 {[%emt 0:05:24]} Nxd4 {[%emt 0:13:53]} 12. Qxd4 {[%emt 0:03:37]} O-O {[%emt 0:12:59]} 13. Rd1 {[%emt 0:00:15]} Qd7 {[%emt 0:10:23]} 14. Bf4 {[%emt 0:13:37]} Rfd8 {[%emt 0:06:23]} 15. Rac1 {[%emt 0:01:03]} Rac8 {[%emt 0:00:54]} 16. Na4 {[%emt 0:25:00]} b5 {[%emt 0:05:24]} 17. Nc5 {[%emt 0:01:35]} Bxc5 {[%emt 0:01:06]} 18. Rxc5 {[%emt 0:00:06]} Rxc5 {[%emt 0:00:11]} 19. Qxc5 {[%emt 0:00:04]} Rc8 {[%emt 0:00:20]} 20. Qd4 {[%emt 0:05:18]} h6 {[%emt 0:02:26]} 21. Be5 {[%emt 0:09:28]} Rc4 {[%emt 0:05:35]} 22. Qd2 {[%emt 0:00:48]} Qe7 {[%emt 0:04:35]} 23. b3 {[%emt 0:00:51]} Rc6 {[%emt 0:01:23]} 24. Qb2 {[%emt 0:04:47]} Ne8 {[%emt 0:03:47]} 25. Bxd5 {[%emt 0:04:29]} Bxd5 {[%emt 0:02:48]} 26. Rxd5 {[%emt 0:00:06]} Re6 {[%emt 0:00:41]} 27. e3 {[%emt 0:02:58]} f6 {[%emt 0:00:39]} 28. Bd4 {[%emt 0:00:47]} Qb7 {[%emt 0:00:42]} 29. Rc5 {[%emt 0:01:23]} Nd6 {[%emt 0:07:17]} 30. Qc2 {[%emt 0:00:13]} a6 {[%emt 0:01:06]} 31. Rc7 {[%emt 0:00:33]} Qe4 {[%emt 0:00:10]} 32. Qc6 {[%emt 0:03:39]} Qb1+ {[%emt 0:00:32]} 33. Kg2 {[%emt 0:00:15]} Qe4+ {[%emt 0:00:14]} 34. f3 {[%emt 0:02:44]} Qf5 {[%emt 0:00:54]} 35. g4 {[%emt 0:00:35]} Qg6 {[%emt 0:00:49]} 36. Qd5 {[%emt 0:00:50]} Qe8 {[%emt 0:00:23]} 37. Rc6 {[%emt 0:00:17]} Qd7 {[%emt 0:00:49]} 38. Bc5 {[%emt 0:00:15]} 1-0

[Event "SVK-ch Open 2018"]
[Site "Banska Stiavnica"]
[Date "2018.07.07"]
[Round "1"]
[White "Stockova, Zuzana"]
[Black "Liska, Jaroslav"]
[Result "1-0"]
[ECO "B75"]
[WhiteElo "2301"]
[BlackElo "1914"]
[Annotator "NA"]
[PlyCount "77"]
[EventDate "2018.07.07"]
[EventType "swiss"]
[EventCountry "SVK"]
[SourceTitle "playchess.com"]
[Source "ChessBase"]
[SourceQuality "1"]
[TimeControl "40/5400+30:1800+30"]

1. e4 {[%emt 0:00:00]} c5 {[%emt 0:06:54]} 2. Nf3 {[%emt 0:00:00]} d6 {[%emt 0:00:02]} 3. d4 {[%emt 0:01:49]} cxd4 {[%emt 0:00:57]} 4. Nxd4 {[%emt 0:00:17]} Nf6 {[%emt 0:00:18]} 5. Nc3 {[%emt 0:00:38]} g6 {[%emt 0:00:15]} 6. Be3 {[%emt 0:01:15]} Bg7 {[%emt 0:01:58]} 7. f3 {[%emt 0:03:14]} a6 {[%emt 0:02:47]} 8. Bc4 {[%emt 0:04:18]} Nc6 {[%emt 0:01:33]} 9. Bb3 {[%emt 0:02:08]} Na5 {[%emt 0:01:42]} 10. Qd2 {[%emt 0:04:58]} Nxb3 {[%emt 0:00:19]} 11. cxb3 {[%emt 0:02:08]} h5 {[%emt 0:01:18]} 12. O-O {[%emt 0:08:46]} O-O {[%emt 0:00:31]} 13. Rfd1 {[%emt 0:01:03]} Bd7 {[%emt 0:06:04]} 14. Qf2 {[%emt 0:07:19]} Qa5 {[%emt 0:04:32]} 15. Nc2 {[%emt 0:08:29]} Qc7 {[%emt 0:04:36]} 16. Bb6 {[%emt 0:06:24]} Qc8 {[%emt 0:00:49]} 17. Nb4 {[%emt 0:01:19]} Bc6 {[%emt 0:02:20]} 18. Rac1 {[%emt 0:04:34]} Qe8 {[%emt 0:02:28]} 19. Bd4 {[%emt 0:12:45]} Rc8 {[%emt 0:02:19]} 20. Nbd5 {[%emt 0:03:03]} Bxd5 {[%emt 0:05:15]} 21. Bxf6 {[%emt 0:01:03]} Bc6 {[%emt 0:03:38]} 22. Bxg7 {[%emt 0:03:05]} Kxg7 {[%emt 0:00:27]} 23. Qd4+ {[%emt 0:06:13]} f6 {[%emt 0:01:48]} 24. h4 {[%emt 0:02:33]} Qf7 {[%emt 0:01:54]} 25. Nd5 {[%emt 0:04:10]} Kh7 {[%emt 0:07:56]} 26. Nb4 {[%emt 0:04:37]} Qe8 {[%emt 0:06:11]} 27. Qa7 {[%emt 0:00:43]} g5 {[%emt 0:11:42]} 28. Nxc6 {[%emt 0:03:17]} bxc6 {[%emt 0:02:21]} 29. hxg5 {[%emt 0:00:26]} fxg5 {[%emt 0:01:22]} 30. Rxd6 {[%emt 0:00:34]} g4 {[%emt 0:02:23]} 31. Re6 {[%emt 0:00:40]} Rf7 {[%emt 0:03:27]} 32. Qc5 {[%emt 0:01:17]} Rg7 {[%emt 0:02:23]} 33. f4 {[%emt 0:00:25]} h4 {[%emt 0:00:59]} 34. Qf5+ {[%emt 0:01:36]} Kg8 {[%emt 0:00:53]} 35. Rh6 {[%emt 0:00:14]} h3 {[%emt 0:01:18]} 36. Qe6+ {[%emt 0:00:14]} Rf7 {[%emt 0:01:03]} 37. Qxg4+ {[%emt 0:00:11]} Rg7 {[%emt 0:00:50]} 38. Qxh3 {[%emt 0:00:40]} Kf7 {[%emt 0:02:49]} 39. Qe6+ {[%emt 0:00:11]} 1-0

[Event "SVK-ch Open 2018"]
[Site "Banska Stiavnica"]
[Date "2018.07.07"]
[Round "1"]
[White "Chmiel, Marcin"]
[Black "Popovic, Martin"]
[Result "1-0"]
[ECO "B33"]
[WhiteElo "2249"]
[BlackElo "1846"]
[Annotator "NA"]
[PlyCount "129"]
[EventDate "2018.07.07"]
[EventType "swiss"]
[EventCountry "SVK"]
[SourceTitle "playchess.com"]
[Source "ChessBase"]
[SourceQuality "1"]
[TimeControl "40/5400+30:1800+30"]

1. e4 {[%emt 0:00:00]} c5 {[%emt 0:00:00]} 2. Nf3 {[%emt 0:00:10]} Nc6 {[%emt 0:00:00]} 3. d4 {[%emt 0:00:12]} cxd4 {[%emt 0:00:00]} 4. Nxd4 {[%emt 0:00:07]} Nf6 {[%emt 0:00:00]} 5. Nc3 {[%emt 0:00:11]} e5 {[%emt 0:00:00]} 6. Ndb5 {[%emt 0:00:16]} d6 {[%emt 0:00:04]} 7. Bg5 {[%emt 0:00:41]} a6 {[%emt 0:00:08]} 8. Na3 {[%emt 0:00:07]} b5 {[%emt 0:00:05]} 9. Bxf6 {[%emt 0:00:28]} gxf6 {[%emt 0:00:46]} 10. Nd5 {[%emt 0:00:20]} Bg7 {[%emt 0:04:54]} 11. Bd3 {[%emt 0:04:27]} Be6 {[%emt 0:10:56]} 12. O-O {[%emt 0:02:42]} Ne7 {[%emt 0:02:09]} 13. Nxe7 {[%emt 0:06:24]} Qxe7 {[%emt 0:00:59]} 14. c4 {[%emt 0:00:41]} b4 {[%emt 0:04:45]} 15. Qa4+ {[%emt 0:01:21]} Qd7 {[%emt 0:02:14]} 16. Qxb4 {[%emt 0:00:25]} Bh6 {[%emt 0:06:37]} 17. Nc2 {[%emt 0:03:03]} Rg8 {[%emt 0:10:15]} 18. g3 {[%emt 0:07:03]} Bh3 {[%emt 0:15:56]} 19. Rfe1 {[%emt 0:02:47]} Rc8 {[%emt 0:04:17]} 20. Ne3 {[%emt 0:01:37]} Bxe3 {[%emt 0:00:28]} 21. Rxe3 {[%emt 0:00:18]} Ke7 {[%emt 0:00:37]} 22. Bf1 {[%emt 0:02:25]} Be6 {[%emt 0:05:43]} 23. Rd1 {[%emt 0:01:21]} Rb8 {[%emt 0:04:45]} 24. Qa3 {[%emt 0:01:01]} Rgc8 {[%emt 0:00:36]} 25. Rb3 {[%emt 0:09:11]} Rxb3 {[%emt 0:01:17]} 26. Qxb3 {[%emt 0:02:26]} Qc6 {[%emt 0:01:26]} 27. Qe3 {[%emt 0:02:14]} Qc5 {[%emt 0:04:12]} 28. Qxc5 {[%emt 0:03:13]} dxc5 {[%emt 0:00:54]} 29. f4 {[%emt 0:00:46]} Rc7 {[%emt 0:05:29]} 30. Kf2 {[%emt 0:00:26]} a5 {[%emt 0:01:15]} 31. Kf3 {[%emt 0:08:30]} Rd7 {[%emt 0:06:24]} 32. Rxd7+ {[%emt 0:00:56]} Bxd7 {[%emt 0:00:02]} 33. b3 {[%emt 0:02:17]} Bc8 {[%emt 0:02:42]} 34. Bd3 {[%emt 0:01:38]} Bd7 {[%emt 0:01:04]} 35. Kg2 {[%emt 0:01:21]} Kf8 {[%emt 0:03:29]} 36. Be2 {[%emt 0:01:50]} Bc6 {[%emt 0:01:03]} 37. Bf3 {[%emt 0:00:03]} Bb7 {[%emt 0:00:55]} 38. Kf2 {[%emt 0:01:00]} Ke7 {[%emt 0:00:54]} 39. Ke3 {[%emt 0:00:14]} Bc8 {[%emt 0:00:00]} 40. Bh5 {[%emt 0:00:29]} Bd7 {[%emt 0:00:41]} 41. Kf3 {[%emt 0:30:36]} f5 {[%emt 0:31:32]} 42. fxe5 {[%emt 0:13:00]} Bc6 {[%emt 0:00:09]} 43. Kf4 {[%emt 0:01:41]} Bxe4 {[%emt 0:00:48]} 44. g4 {[%emt 0:06:02]} Bb1 {[%emt 0:00:00]} 45. gxf5 {[%emt 0:00:00]} Bxa2 {[%emt 0:00:00]} 46. f6+ {[%emt 0:00:00]} Kf8 {[%emt 0:00:00]} 47. Bd1 {[%emt 0:00:00]} Bb1 {[%emt 0:00:00]} 48. Kg5 {[%emt 0:00:00]} Bd3 {[%emt 0:00:00]} 49. h4 {[%emt 0:00:00]} Bb1 {[%emt 0:00:00]} 50. h5 {[%emt 0:00:00]} Bd3 {[%emt 0:00:00]} 51. h6 {[%emt 0:00:00]} Bb1 {[%emt 0:00:00]} 52. Kf4 {[%emt 0:00:00]} Bd3 {[%emt 0:00:00]} 53. Ke3 {[%emt 0:00:00]} Bf5 {[%emt 0:00:00]} 54. Kd2 {[%emt 0:00:00]} Kg8 {[%emt 0:00:00]} 55. Bc2 {[%emt 0:00:00]} Bc8 {[%emt 0:00:00]} 56. Be4 {[%emt 0:00:00]} Bd7 {[%emt 0:00:00]} 57. Kc3 {[%emt 0:00:00]} Be8 {[%emt 0:00:00]} 58. Bb7 {[%emt 0:00:00]} Bd7 {[%emt 0:00:00]} 59. Ba6 {[%emt 0:00:00]} Bg4 {[%emt 0:00:00]} 60. Bb5 {[%emt 0:00:00]} Be6 {[%emt 0:00:00]} 61. Kb2 {[%emt 0:00:00]} Bf5 {[%emt 0:00:00]} 62. Ka3 {[%emt 0:00:00]} Bc2 {[%emt 0:00:00]} 63. Ka4 {[%emt 0:00:00]} Bd1 {[%emt 0:00:00]} 64. Kxa5 {[%emt 0:00:00]} Bxb3 {[%emt 0:00:00]} 65. Kb6 {[%emt 0:00:00]} 1-0